fUSD/lending_fUSD_20260112
["ID","MTS","AMOUNT","RATE_DAILY","PERIOD"]
[401434732,1768212641625,-150.0,0.000165,2]
[401434733,1768212641634,-150.0,0.000165,2]
[401434734,1768212641643,-3240.0,0.00016508,2]
[401434735,1768212641652,-150.0,0.00016514,2]
[401434736,1768212641662,-1000.0,0.00016515,2]
[401434737,1768212641671,-150.0,0.00016543,2]
[401434738,1768212641680,-150.0,0.0001656,2]
[401434739,1768212641689,-150.0,0.00016571,2]
[401434740,1768212641699,-150.0,0.000166,2]
[401434741,1768212641708,-150.0,0.00016629,2]
[401434742,1768212641717,-150.0,0.0001665,2]
[401434743,1768212641727,-150.0,0.0001665,2]
[401434744,1768212641736,-150.0,0.0001665,2]
[401434745,1768212641745,-150.0,0.00016657,2]
[401434746,1768212641755,-150.0,0.00016686,2]
[401434747,1768212641764,-150.0,0.00016714,2]
[401434748,1768212641773,-150.0,0.00016743,2]
[401434749,1768212641783,-150.0,0.00016771,2]
[401434750,1768212641792,-150.0,0.000168,2]
[401434751,1768212641802,-150.0,0.000168,2]
[401434752,1768212641811,-150.0,0.000168,2]
[401434753,1768212641820,-150.0,0.000168,2]
[401434754,1768212641830,-150.0,0.000168,2]
[401434755,1768212641839,-150.0,0.00016829,2]
[401434756,1768212641848,-556.69,0.00016837,2]
[401434757,1768212641858,-983.4,0.00016847,2]
[401434758,1768212641867,-150.0,0.00016857,2]
[401434759,1768212641877,-150.0,0.00016886,2]
[401434760,1768212641886,-1396.40499845,0.00016897,2]
[401434761,1768212641896,-150.0,0.00016914,2]
[401434762,1768212641905,-150.0,0.0001692,2]
[401434763,1768212641915,-150.0,0.00016943,2]
[401434764,1768212641926,-983.4,0.00016952,2]
[401434765,1768212641935,-150.0,0.00016971,2]
[401434766,1768212641944,-165.22671332,0.00016998,2]
[401434767,1768212641954,-150.0,0.00017,2]
[401434768,1768212641964,-150.0,0.00017029,2]
[401434769,1768212641973,-158.73335703,0.00017049,2]
[401434770,1768212641983,-983.4,0.00017057,2]
[401434771,1768212641992,-150.0,0.00017057,2]
[401434772,1768212642002,-500.0,0.00017073,2]
[401434773,1768212642011,-172.74586302,0.00017073,2]
[401434774,1768212642020,-500.0,0.00017073,2]
[401434775,1768212642029,-500.0,0.00017073,2]
[401434776,1768212642038,-501.67211681,0.00017073,2]
[401434777,1768212642047,-500.0,0.00017073,2]
[401434778,1768212642056,-500.83788468,0.00017073,2]
[401434779,1768212642065,-500.51842778,0.00017073,2]
[401434780,1768212642074,-500.0,0.00017073,2]
[401434781,1768212642084,-500.38035534,0.00017073,2]
[401434782,1768212642092,-500.57959935,0.00017073,2]
[401434783,1768212642102,-150.0,0.00017086,2]
[401434784,1768212642111,-150.0,0.000171,2]
[401434785,1768212642120,-150.0,0.000171,2]
[401434786,1768212642128,-150.0,0.000171,2]
[401434787,1768212642137,-150.0,0.000171,2]
[401434788,1768212642146,-150.0,0.000171,2]
[401434789,1768212642156,-150.0,0.000171,2]
[401434790,1768212642167,-150.0,0.000171,2]
[401434791,1768212642176,-150.0,0.000171,2]
[401434792,1768212642186,-1000.0,0.00017112,2]
[401434793,1768212642195,-150.0,0.00017114,2]
[401434794,1768212642204,-150.0,0.00017143,2]
[401434795,1768212642214,-207.75461471,0.00017148,2]
[401434796,1768212642224,-983.4,0.00017161,2]
[401434797,1768212642233,-150.0,0.00017171,2]
[401434798,1768212642244,-171.53,0.00017178,2]
[401434799,1768212642254,-556.81,0.00017178,2]
[401434800,1768212642263,-179.28,0.00017178,2]
[401434801,1768212642272,-179.28,0.00017178,2]
[401434802,1768212642282,-556.81,0.00017178,2]
[401434803,1768212642291,-179.28,0.00017178,2]
[401434804,1768212642301,-556.81,0.00017178,2]
[401434805,1768212642310,-179.28,0.00017178,2]
[401434806,1768212642319,-464.67,0.00017178,2]
[401434807,1768212642328,-179.28,0.00017178,2]
[401434808,1768212642337,-6157.84376205,0.00017189,2]
[401434809,1768212642347,-150.0,0.000172,2]
[401434810,1768212642357,-150.0,0.00017229,2]
[401434811,1768212642366,-150.0,0.00017257,2]
[401434812,1768212642376,-983.4,0.00017266,2]
[401434813,1768212642387,-150.0,0.0001728,2]
[401434814,1768212642396,-150.0,0.00017286,2]
[401434815,1768212642416,-289.09,0.0001731,2]
[401434816,1768212642436,-150.0,0.00017314,2]
[401434817,1768212642452,-2080.0,0.00017343,2]
[401434818,1768212642461,-150.0,0.00017343,2]
[401434819,1768212642473,-983.4,0.00017371,2]
[401434820,1768212642483,-150.0,0.00017371,2]
[401434821,1768212642492,-761.0,0.00017383,2]
[401434822,1768212642502,-1396.40499845,0.00017399,2]
[401434823,1768212642513,-150.0,0.000174,2]
[401434824,1768212642522,-150.0,0.000174,2]
[401434825,1768212642532,-150.0,0.000174,2]
[401434826,1768212642541,-150.0,0.000174,2]
[401434827,1768212642551,-150.0,0.000174,2]
[401434828,1768212642560,-2080.0,0.00017419,2]
[401434830,1768212642570,-150.0,0.00017429,2]
[401434832,1768212642579,-150.0,0.00017457,2]
[401434834,1768212642589,-250.0,0.00017465,2]
[401434835,1768212642599,-983.4,0.00017476,2]
[401434836,1768212642608,-150.0,0.00017486,2]
[401434837,1768212642617,-2000.0,0.000175,2]
[401434838,1768212642627,-417.0,0.000175,2]
[401434839,1768212642637,-761.0,0.00017509,2]
[401434840,1768212642646,-150.0,0.00017514,2]
[401434841,1768212642656,-1330.0,0.00017521,2]
[401434842,1768212642665,-1267.0,0.00017521,2]
[401434843,1768212642675,-1201.0,0.00017521,2]
[401434844,1768212642685,-914.0,0.00017521,2]
[401434845,1768212642695,-2437.0,0.00017521,2]
[401434846,1768212642706,-4821.0,0.00017521,2]
[401434847,1768212642715,-6556.0,0.00017521,2]
[401434848,1768212642724,-2080.0,0.00017522,2]
[401434849,1768212642734,-860.04,0.00017527,2]
[401434850,1768212642743,-150.0,0.00017543,2]
[401434851,1768212642752,-150.0,0.0001755,2]
[401434852,1768212642761,-150.0,0.0001755,2]
[401434853,1768212642771,-150.0,0.0001755,2]
[401434854,1768212642780,-150.0,0.00017571,2]
[401434855,1768212642790,-983.4,0.00017581,2]
[401434856,1768212642800,-47598.0,0.00017598,2]
[401434857,1768212642809,-150.0,0.000176,2]
[401434858,1768212642818,-1000.0,0.00017621,2]
[401434859,1768212642828,-746.48133113,0.00017621,2]
[401434860,1768212642837,-493.49118932,0.00017621,2]
[401434861,1768212642847,-1000.0,0.00017621,2]
[401434862,1768212642856,-150.0,0.00017629,2]
[401434863,1768212642865,-761.0,0.00017633,2]
[401434864,1768212642875,-150.0,0.0001764,2]
[401434865,1768212642884,-631.58618577,0.0001764,2]
[401434866,1768212642894,-150.0,0.00017657,2]
[401434867,1768212642903,-1000.0,0.00017675,2]
[401434868,1768212642912,-150.0,0.00017686,2]
[401434869,1768212642922,-983.4,0.00017686,2]
[401434870,1768212642932,-150.0,0.000177,2]
[401434871,1768212642942,-150.0,0.000177,2]
[401434872,1768212642953,-150.0,0.000177,2]
[401434873,1768212642963,-4307.04643237,0.000177,2]
[401434874,1768212642972,-1000.0,0.00017709,2]
[401434875,1768212642981,-150.0,0.00017714,2]
[401434876,1768212642991,-150.0,0.00017726,2]
[401434877,1768212643000,-1000.0,0.00017727,2]
[401434878,1768212643010,-1000.0,0.00017729,2]
[401434879,1768212643019,-1000.0,0.00017742,2]
[401434880,1768212643029,-150.0,0.00017743,2]
[401434881,1768212643038,-1000.0,0.00017749,2]
[401434882,1768212643047,-1000.0,0.00017758,2]
[401434883,1768212643056,-1000.0,0.00017766,2]
[401434884,1768212643065,-1000.0,0.00017767,2]
[401434885,1768212643075,-1000.0,0.0001777,2]
[401434886,1768212643084,-1000.0,0.0001777,2]
[401434887,1768212643093,-150.0,0.00017771,2]
[401434888,1768212643103,-1000.0,0.00017774,2]
[401434889,1768212643112,-1000.0,0.00017778,2]
[401434890,1768212643122,-983.4,0.0001779,2]
[401434891,1768212643132,-1000.0,0.00017798,2]
[401434892,1768212643141,-150.0,0.000178,2]
[401434893,1768212643150,-1000.0,0.000178,2]
[401434894,1768212643160,-3292.0,0.00017805,2]
[401434895,1768212643173,-220.7493929,0.00017807,2]
[401434896,1768212643182,-1000.0,0.00017817,2]
[401434897,1768212643191,-910.24842296,0.0001782,2]
[401434898,1768212643201,-18351.25685334,0.00017821,2]
[401434899,1768212643214,-29852.13003517,0.00017821,2]
[401434900,1768212643235,-42160.11711912,0.00017821,2]
[401434901,1768212643252,-54554.2965,0.00017821,2]
[401434902,1768212643262,-1000.0,0.00017824,2]
[401434903,1768212643271,-1000.0,0.00017825,2]
[401434904,1768212643280,-150.0,0.00017829,2]
[401434905,1768212643289,-83171.52894996,0.0001783,2]
[401434906,1768212643299,-1000.0,0.00017834,2]
[401434907,1768212643308,-1000.0,0.00017834,2]
[401434908,1768212643317,-1000.0,0.00017852,2]
[401434909,1768212643327,-1000.0,0.00017855,2]
[401434910,1768212643336,-200.0,0.00017856,2]
[401434911,1768212643345,-150.0,0.00017857,2]
[401434912,1768212643354,-1000.0,0.0001787,2]
[401434913,1768212643363,-2050.0,0.00017872,2]
[401434914,1768212643373,-1000.0,0.00017876,2]
[401434915,1768212643382,-1000.0,0.00017876,2]
[401434916,1768212643391,-1000.0,0.0001788,2]
[401434917,1768212643400,-150.0,0.00017886,2]
[401434918,1768212643410,-1000.0,0.00017888,2]
[401434919,1768212643419,-1000.0,0.00017891,2]
[401434920,1768212643428,-150.0,0.00017893,2]
[401434921,1768212643438,-1000.0,0.00017893,2]
[401434922,1768212643448,-983.4,0.00017895,2]
[401434923,1768212643457,-1054.4366,0.00017899,2]
[401434924,1768212643467,-1396.40499845,0.000179,2]
[401434925,1768212643482,-207.75461471,0.000179,2]
[401434926,1768212643501,-211.9281146,0.000179,2]
[401434927,1768212643511,-165.22671332,0.000179,2]
[401434928,1768212643520,-5975.58700632,0.000179,2]
[401434929,1768212643529,-500.0,0.000179,2]
[401434930,1768212643538,-500.0,0.000179,2]
[401434931,1768212643548,-500.0,0.000179,2]
[401434932,1768212643557,-500.0,0.000179,2]
[401434933,1768212643567,-500.0,0.000179,2]
[401434934,1768212643576,-500.0,0.000179,2]
[401434935,1768212643585,-500.0,0.000179,2]
[401434936,1768212643595,-500.0,0.000179,2]
[401434937,1768212643604,-500.0,0.000179,2]
[401434938,1768212643614,-500.0,0.000179,2]
[401434939,1768212643624,-500.0,0.000179,2]
[401434940,1768212643634,-500.0,0.000179,2]
[401434941,1768212643643,-500.0,0.000179,2]
[401434942,1768212643653,-500.0,0.000179,2]
[401434943,1768212643663,-500.0,0.000179,2]
[401434944,1768212643679,-500.0,0.000179,2]
[401434945,1768212643691,-500.0,0.000179,2]
[401434946,1768212643700,-500.0,0.000179,2]
[401434947,1768212643710,-500.0,0.000179,2]
[401434948,1768212643719,-500.0,0.000179,2]
[401434949,1768212643729,-500.0,0.000179,2]
[401434950,1768212643739,-500.0,0.000179,2]
[401434951,1768212643748,-500.0,0.000179,2]
[401434952,1768212643758,-500.0,0.000179,2]
[401434953,1768212643767,-500.0,0.000179,2]
[401434954,1768212643776,-500.0,0.000179,2]
[401434955,1768212643785,-500.0,0.000179,2]
[401434956,1768212643795,-500.0,0.000179,2]
[401434957,1768212643805,-500.0,0.000179,2]
[401434958,1768212643814,-500.0,0.000179,2]
[401434959,1768212643823,-500.0,0.000179,2]
[401434960,1768212643832,-500.0,0.000179,2]
[401434961,1768212643842,-500.0,0.000179,2]
[401434962,1768212643852,-500.0,0.000179,2]
[401434963,1768212643861,-500.0,0.000179,2]
[401434964,1768212643871,-500.0,0.000179,2]
[401434965,1768212643881,-500.0,0.000179,2]
[401434966,1768212643891,-500.0,0.000179,2]
[401434967,1768212643900,-500.0,0.000179,2]
[401434968,1768212643909,-500.0,0.000179,2]
[401434969,1768212643919,-500.0,0.000179,2]
[401434970,1768212643928,-500.0,0.000179,2]
[401434971,1768212643938,-500.0,0.000179,2]
[401434972,1768212643947,-500.0,0.000179,2]
[401434973,1768212643956,-500.0,0.000179,2]
[401434974,1768212643966,-500.0,0.000179,2]
[401434975,1768212643975,-301.9716591,0.000179,2]
[401434976,1768212643985,-1000.0,0.00017914,2]
[401434977,1768212643995,-150.0,0.00017914,2]
[401434978,1768212644005,-168.18552807,0.00017917,2]
[401434979,1768212644015,-222.97211581,0.00017924,2]
[401434980,1768212644024,-1000.0,0.00017927,2]
[401434981,1768212644034,-1000.0,0.00017939,2]
[401434982,1768212644043,-1000.0,0.00017942,2]
[401434983,1768212644052,-150.0,0.00017943,2]
[401434984,1768212644061,-1000.0,0.00017954,2]
[401434985,1768212644071,-1000.0,0.00017958,2]
[401434986,1768212644080,-1000.0,0.0001797,2]
[401434987,1768212644090,-150.0,0.00017971,2]
[401434988,1768212644099,-150.0,0.00017971,2]
[401434989,1768212644110,-6077.0,0.00017973,2]
[401434990,1768212644119,-501.10571804,0.00017973,2]
[401434991,1768212644128,-500.0,0.00017973,2]
[401434992,1768212644138,-644.05438872,0.00017973,2]
[401434993,1768212644147,-498.39272947,0.00017973,2]
[401434994,1768212644157,-502.23302881,0.00017973,2]
[401434995,1768212644168,-501.12911319,0.00017973,2]
[401434996,1768212644178,-500.0,0.00017973,2]
[401434997,1768212644187,-502.86808452,0.00017973,2]
[401434998,1768212644197,-500.0,0.00017973,2]
[401434999,1768212644207,-500.0,0.00017973,2]
[401435000,1768212644216,-150.0,0.00017975,2]
[401435001,1768212644225,-500.0,0.00017982,2]
[401435002,1768212644235,-152.92662848,0.00017982,2]
[401435003,1768212644247,-1000.0,0.00017983,2]
[401435004,1768212644256,-659.24928512,0.0001799,2]
[401435005,1768212644266,-659.24928512,0.0001799,2]
[401435006,1768212644276,-1000.0,0.00017991,2]
[401435007,1768212644285,-1000.0,0.00017997,2]
[401435008,1768212644294,-162.25638013,0.00017999,2]
[401435009,1768212644304,-300.0,0.00017999,2]
[401435010,1768212644313,-300.0,0.00017999,2]
[401435011,1768212644323,-673.04563665,0.00017999,2]
[401435012,1768212644332,-1358.8258173,0.00017999,2]
[401435013,1768212644342,-300.0,0.00017999,2]
[401435014,1768212644351,-666.0,0.00017999,2]
[401435015,1768212644360,-300.0,0.00017999,2]
[401435016,1768212644369,-670.95106238,0.00017999,2]
[401435017,1768212644379,-300.0,0.00017999,2]
[401435018,1768212644388,-500.0,0.00017999,2]
[401435019,1768212644398,-500.0,0.00017999,2]
[401435020,1768212644407,-500.0,0.00017999,2]
[401435021,1768212644417,-500.0,0.00017999,2]
[401435022,1768212644426,-500.0,0.00017999,2]
[401435023,1768212644435,-500.0,0.00017999,2]
[401435024,1768212644445,-500.0,0.00017999,2]
[401435025,1768212644454,-500.0,0.00017999,2]
[401435026,1768212644464,-500.0,0.00017999,2]
[401435027,1768212644473,-500.0,0.00017999,2]
[401435028,1768212644482,-500.0,0.00017999,2]
[401435029,1768212644491,-500.0,0.00017999,2]
[401435030,1768212644500,-500.0,0.00017999,2]
[401435031,1768212644510,-500.0,0.00017999,2]
[401435032,1768212644519,-500.0,0.00017999,2]
[401435033,1768212644528,-369.87509882,0.00017999,2]
[401435034,1768212644538,-666.0,0.00017999,2]
[401435035,1768212644547,-156.71525666,0.00018,2]
[401435036,1768212644557,-154.38953807,0.00018,2]
[401435037,1768212644566,-263.65847091,0.00018,2]
[401435038,1768212644576,-155.07098724,0.00018,2]
[401435039,1768212644585,-155.70825827,0.00018,2]
[401435040,1768212644595,-151.45444701,0.00018,2]
[401435041,1768212644605,-154.70586823,0.00018,2]
[401435042,1768212644614,-152.37123583,0.00018,2]
[401435043,1768212644623,-152.34445976,0.00018,2]
[401435044,1768212644632,-248.59699216,0.00018,2]
[401435045,1768212644641,-265.81954746,0.00018,2]
[401435046,1768212644651,-4823813.02081645,0.00018,2]
[401435047,1768212644660,-78160.66810791,0.00018,2]
[401435048,1768212644670,-978559.97301155,0.00018,2]
[401435049,1768212644680,-500.0,0.00018,2]
[401435050,1768212644689,-500.0,0.00018,2]
[401435051,1768212644698,-500.0,0.00018,2]
[401435052,1768212644708,-500.0,0.00018,2]
[401435053,1768212644718,-500.0,0.00018,2]
[401435054,1768212644727,-500.0,0.00018,2]
[401435055,1768212644736,-500.0,0.00018,2]
[401435056,1768212644745,-500.0,0.00018,2]
[401435057,1768212644754,-500.0,0.00018,2]
[401435058,1768212644765,-500.0,0.00018,2]
[401435059,1768212644774,-500.0,0.00018,2]
[401435060,1768212644784,-500.0,0.00018,2]
[401435061,1768212644794,-500.0,0.00018,2]
[401435062,1768212644804,-500.0,0.00018,2]
[401435063,1768212644814,-500.0,0.00018,2]
[401435064,1768212644823,-500.0,0.00018,2]
[401435065,1768212644833,-500.0,0.00018,2]
[401435066,1768212644842,-500.0,0.00018,2]
[401435067,1768212644852,-500.0,0.00018,2]
[401435068,1768212644862,-500.0,0.00018,2]
[401435069,1768212644871,-494.5,0.00018,2]
[401435070,1768212644881,-768.26,0.00018,7]
[401435071,1768212644890,-310215.36920739,0.00018,2]
[401435075,1768212645731,-157014.02375358,0.00018,2]
[401435076,1768212646127,-584.221,0.00017,2]
[401435077,1768212646137,-541.051,0.00017521,2]
[401435078,1768212646146,-1726.068284,0.00018,2]
[401435079,1768212646233,-398.72,0.00016823,2]
[401435080,1768212693427,160.81805486,0.00013013,2]
[401435082,1768213639132,-257.0,0.00013013,2]
[401435083,1768213639155,-1135.862,0.00013013,2]
[401435084,1768213639176,-150.514,0.00013013,2]
[401435085,1768213639197,-250.0,0.00013046,2]
[401435086,1768213639218,-105.15069688,0.00013121,2]
[401435096,1768213831810,-207.75461472,0.00013077,2]
[401435097,1768213831819,-257.0,0.00013077,2]
[401435099,1768213831830,-165.22671333,0.00013077,2]
[401435101,1768213831839,-250.0,0.00013099,2]
[401435102,1768213831848,-208.11953762,0.00013166,2]
[401435104,1768213831859,-91.88046238,0.00013166,2]
[401435106,1768213831869,-598.04481882,0.00013166,2]
[401435107,1768213831880,-601.95518118,0.00013166,2]
[401435108,1768213831890,-231.33814714,0.00013167,2]
[401435109,1768213831900,-500.0,0.00013167,2]
[401435110,1768213831909,-18.37894869,0.00013167,2]
[401435111,1768213831925,-481.62105131,0.00013167,2]
[401435112,1768213831935,-500.0,0.00013167,2]
[401435113,1768213831944,-500.0,0.00013167,2]
[401435114,1768213831953,-500.0,0.00013167,2]
[401435115,1768213831963,-50.13999792,0.00013167,2]
[401435116,1768213831974,-582.55434116,0.00013167,2]
[401435117,1768213831984,-500.0,0.00013167,2]
[401435118,1768213831993,-500.0,0.00013167,2]
[401435119,1768213832003,-2805.98596087,0.00013168,2]
[401435120,1768213832014,-888.14621228,0.00013168,2]
[401435121,1768213832039,-501.00324206,0.00013168,2]
[401435122,1768213832050,-506.33755616,0.00013168,2]
[401435123,1768213832062,-38839.00103462,0.00013168,2]
[401435124,1768213832072,-590.20062203,0.00013168,2]
[401435125,1768213832084,-18422.46948847,0.00013168,2]
[401435126,1768213832114,-292.97700002,0.00013168,2]
[401435127,1768213832125,-8823.48414865,0.00013168,2]
[401435128,1768213832136,-2339.23571831,0.00013168,2]
[401435129,1768213832148,-575.75,0.00013168,2]
[401435130,1768213832159,-1849.13491146,0.00013168,2]
[401435136,1768213838128,-638.55537377,0.00013168,2]
[401435137,1768213838140,-90990.2761422,0.00013168,2]
[401435138,1768213838185,-4258.06083578,0.00013168,2]
[401435139,1768213838198,-400.0,0.00013168,2]
[401435140,1768213838255,-52830.2209683,0.00013168,2]
[401435141,1768213838267,-2481.26838407,0.00013168,2]
[401435142,1768213838279,-3842.94508116,0.00013168,2]
[401435143,1768213838291,-342.51406998,0.00013168,2]
[401435144,1768213838320,-3341.54631403,0.00013168,2]
[401435145,1768213838359,-832.19999971,0.00013168,2]
[401435146,1768213838414,-373.38091558,0.00013168,2]
[401435147,1768213839579,-6769.46469655,0.00013168,2]
[401435150,1768213840257,-965.92,0.00013168,2]
[401435151,1768213840421,-755499.92132394,0.00013168,2]
[401435152,1768213840431,-3766.56455897,0.00013178,2]
[401435153,1768213840442,-44199.70526654,0.00013268,2]
[401435154,1768213840452,-2024.7462,0.00013278,2]
[401435155,1768213840463,-1000.0,0.00013278,2]
[401435156,1768213840475,-659.24928512,0.00013688,2]
[401435157,1768213840486,-500.0,0.00013698,2]
[401435158,1768213840497,-500.0,0.00013698,2]
[401435159,1768213840508,-500.0,0.00013698,2]
[401435160,1768213840521,-500.0,0.00013698,2]
[401435161,1768213840532,-500.0,0.00013698,2]
[401435162,1768213840542,-540.03623195,0.00013698,2]
[401435163,1768213840554,-500.0,0.00013698,2]
[401435164,1768213840564,-500.0,0.00013698,2]
[401435165,1768213840574,-500.0,0.00013698,2]
[401435166,1768213840585,-330.30276578,0.00013698,2]
[401435167,1768213840596,-500.0,0.00013698,2]
[401435168,1768213840607,-602.58106697,0.00013698,2]
[401435169,1768213840618,-500.0,0.00013698,2]
[401435170,1768213840628,-500.0,0.00013698,2]
[401435171,1768213840640,-500.0,0.00013698,2]
[401435173,1768213840649,-500.0,0.00013698,2]
[401435175,1768213840659,-500.0,0.00013698,2]
[401435177,1768213840670,-518.76755169,0.00013698,2]
[401435179,1768213840680,-500.0,0.00013698,2]
[401435181,1768213840689,-500.0,0.00013698,2]
[401435184,1768213840708,-500.0,0.00013698,2]
[401435186,1768213840719,-508.50378479,0.00013698,2]
[401435188,1768213840729,-500.0,0.00013698,2]
[401435190,1768213840739,-500.0,0.00013698,2]
[401435192,1768213840750,-500.0,0.00013698,2]
[401435194,1768213840759,-500.0,0.00013698,2]
[401435196,1768213840770,-500.0,0.00013698,2]
[401435198,1768213840780,-404.20947906,0.00013698,2]
[401435200,1768213840790,-507.848456,0.00013698,2]
[401435202,1768213840800,-512.2174814,0.00013698,2]
[401435205,1768213840813,-502.8163204,0.00013698,2]
[401435207,1768213840823,-458.28,0.00013698,2]
[401435209,1768213840834,-356.46360209,0.00013698,2]
[401435211,1768213840844,-500.0,0.00013698,2]
[401435213,1768213840856,-630.29424855,0.00013698,2]
[401435215,1768213840865,-500.0,0.00013698,2]
[401435217,1768213840875,-509.50574001,0.00013698,2]
[401435219,1768213840886,-500.0,0.00013698,2]
[401435221,1768213840896,-522.22729333,0.00013698,2]
[401435223,1768213840905,-507.73004524,0.00013698,2]
[401435225,1768213840915,-500.0,0.00013698,2]
[401435227,1768213840925,-500.0,0.00013698,2]
[401435229,1768213840935,-500.0,0.00013698,2]
[401435231,1768213840945,-500.0,0.00013698,2]
[401435233,1768213840955,-506.26751507,0.00013698,2]
[401435235,1768213840965,-500.0,0.00013698,2]
[401435237,1768213840975,-500.0,0.00013698,2]
[401435239,1768213840985,-500.0,0.00013698,2]
[401435241,1768213840995,-500.0,0.00013698,2]
[401435243,1768213841004,-341.67884985,0.00013698,2]
[401435245,1768213841014,-500.0,0.00013698,2]
[401435247,1768213841024,-500.0,0.00013698,2]
[401435249,1768213841033,-500.0,0.00013698,2]
[401435251,1768213841043,-500.0,0.00013698,2]
[401435253,1768213841053,-81528.87,0.00013698,2]
[401435255,1768213841062,-275.28,0.00013698,2]
[401435257,1768213841072,-150.99,0.00013698,2]
[401435259,1768213841082,-9999.99,0.00013698,2]
[401435261,1768213841091,-27275.71,0.00013698,2]
[401435263,1768213841101,-500.0,0.00013698,2]
[401435265,1768213841112,-226.90542716,0.00013699,2]
[401435267,1768213841122,-3766.56455891,0.00013703,2]
[401435269,1768213841132,-207.75461471,0.00013881,2]
[401435271,1768213841141,-458.28,0.00013972,2]
[401435273,1768213841151,-165.22671332,0.00014042,2]
[401435275,1768213841160,-33074.45,0.00014126,2]
[401435276,1768213841170,-3766.56455891,0.00014227,2]
[401435277,1768213841180,-458.28,0.00014246,2]
[401435278,1768213841190,-285.0,0.00014312,2]
[401435279,1768213841200,-600.0,0.00014385,2]
[401435280,1768213841210,-250.0,0.00014385,2]
[401435281,1768213841220,-600.0,0.00014433,2]
[401435282,1768213841230,-309.27968136,0.00014433,2]
[401435283,1768213841240,-600.0,0.00014433,2]
[401435284,1768213841250,-600.0,0.00014433,2]
[401435285,1768213841261,-600.0,0.00014433,2]
[401435286,1768213841270,-420.0,0.00014436,2]
[401435288,1768213841280,-1680.0,0.00014483,2]
[401435290,1768213841290,-458.28,0.0001452,2]
[401435292,1768213841299,-500.0,0.00014603,2]
[401435294,1768213841309,-500.0,0.00014658,2]
[401435296,1768213841318,-207.75461471,0.00014685,2]
[401435298,1768213841328,-3766.56455891,0.00014752,2]
[401435300,1768213841338,-1500.0,0.0001476,2]
[401435302,1768213841347,-458.31526628,0.00014794,2]
[401435304,1768213841356,-165.22671332,0.00015006,2]
[401435306,1768213841368,-151.0,0.00015114,2]
[401435308,1768213841377,-3766.56455891,0.00015277,2]
[401435310,1768213841388,-1852.42,0.00015304,2]
[401435312,1768213841397,-207.75461471,0.00015489,2]
[401435314,1768213841406,-29060.0,0.000156,2]
[401435316,1768213841416,-3766.56455891,0.00015801,2]
[401435318,1768213841427,-587.0,0.00015829,2]
[401435321,1768213841436,-4946.20026522,0.000159,2]
[401435323,1768213841446,-5534.0,0.000159,3]
[401435325,1768213841456,-2351.0,0.00015931,2]
[401435327,1768213841466,-165.22671332,0.00015971,2]
[401435329,1768213841475,-24325.16182044,0.00016012,2]
[401435330,1768213841484,-150.0,0.000162,2]
[401435332,1768213841494,-150.0,0.000162,2]
[401435334,1768213841504,-150.0,0.000162,2]
[401435336,1768213841516,-150.0,0.000162,2]